fUST/lending_fUST_20251006
["ID","MTS","AMOUNT","RATE_DAILY","PERIOD"]
[389497982,1759683065454,-162.51351402,0.00017841,2]
[389497983,1759683065464,-500.0,0.00017841,2]
[389497984,1759683065472,-500.0,0.00017841,2]
[389497985,1759683065482,-1752.0,0.00017841,2]
[389497986,1759683065491,-500.0,0.00017841,2]
[389497987,1759683065500,-500.0,0.00017841,2]
[389497988,1759683065510,-441.8798321,0.00017841,2]
[389497989,1759683065520,-500.0,0.00017841,2]
[389497990,1759683065530,-157.49425463,0.00017841,2]
[389497991,1759683065540,-523.69296064,0.00017841,2]
[389497992,1759683065550,-151.0,0.00017841,2]
[389497993,1759683065559,-500.0,0.00017841,2]
[389497994,1759683065568,-500.0,0.00017841,2]
[389497995,1759683065577,-500.0,0.00017841,2]
[389497996,1759683065586,-201.0,0.00017896,2]
[389497997,1759683065596,-2742.45183605,0.00017906,3]
[389497998,1759683065605,-168.3888056,0.00017971,2]
[389497999,1759683065614,-201.0,0.00017995,2]
[389498000,1759683065623,-3827.42921524,0.00018,2]
[389498001,1759683065634,-342.41886422,0.00018068,2]
[389498002,1759683065643,-1500.0,0.00018068,2]
[389498003,1759683065652,-1500.0,0.00018068,2]
[389498004,1759683065660,-1500.0,0.00018068,2]
[389498005,1759683065669,-1060.78338102,0.00018068,2]
[389498006,1759683065678,-1500.0,0.00018068,2]
[389498007,1759683065687,-1500.0,0.00018068,2]
[389498008,1759683065696,-1301.46862515,0.00018068,2]
[389498009,1759683065709,-1500.0,0.00018068,2]
[389498010,1759683065718,-1500.0,0.00018068,2]
[389498011,1759683065727,-1500.0,0.00018068,2]
[389498012,1759683065737,-1500.0,0.00018068,2]
[389498013,1759683065746,-1500.0,0.00018068,2]
[389498014,1759683065756,-1500.0,0.00018068,2]
[389498015,1759683065765,-1500.0,0.00018068,2]
[389498016,1759683065774,-1500.0,0.00018068,2]
[389498017,1759683065783,-1500.0,0.00018068,2]
[389498018,1759683065792,-1500.0,0.00018068,2]
[389498019,1759683065802,-1500.0,0.00018068,2]
[389498020,1759683065810,-1500.0,0.00018068,2]
[389498021,1759683065819,-1003.2679166,0.00018068,2]
[389498022,1759683065828,-1500.0,0.00018068,2]
[389498023,1759683065837,-508.0379864,0.00018068,2]
[389498024,1759683065846,-1500.0,0.00018068,2]
[389498025,1759683065855,-700.0,0.00018068,2]
[389498026,1759683065864,-1500.0,0.00018068,2]
[389498027,1759683065873,-1500.0,0.00018068,2]
[389498028,1759683065882,-1500.0,0.00018068,2]
[389498029,1759683065891,-778.70633014,0.00018068,2]
[389498030,1759683065900,-155.0,0.00018081,2]
[389498031,1759683065909,-500.0,0.00018082,2]
[389498032,1759683065918,-500.0,0.00018082,2]
[389498033,1759683065927,-1462.89,0.00018082,2]
[389498034,1759683065935,-500.0,0.00018082,2]
[389498035,1759683065945,-500.0,0.00018082,2]
[389498036,1759683065956,-500.0,0.00018082,2]
[389498037,1759683065965,-500.0,0.00018082,2]
[389498038,1759683065975,-607.69,0.00018082,2]
[389498039,1759683065984,-855.9,0.00018082,2]
[389498040,1759683065993,-500.0,0.00018082,2]
[389498041,1759683066003,-769.36,0.00018082,2]
[389498042,1759683066012,-500.0,0.00018082,2]
[389498043,1759683066021,-500.0,0.00018082,2]
[389498044,1759683066029,-500.0,0.00018082,2]
[389498045,1759683066039,-994.94,0.00018082,2]
[389498046,1759683066048,-500.0,0.00018082,2]
[389498047,1759683066056,-500.0,0.00018082,2]
[389498048,1759683066065,-151.0,0.00018082,2]
[389498049,1759683066074,-500.0,0.00018082,2]
[389498050,1759683066083,-1206.92,0.00018082,2]
[389498051,1759683066092,-500.0,0.00018082,2]
[389498052,1759683066101,-500.0,0.00018082,2]
[389498053,1759683066110,-500.0,0.00018082,2]
[389498054,1759683066120,-500.0,0.00018082,2]
[389498055,1759683066129,-762.91,0.00018082,2]
[389498056,1759683066138,-992.97,0.00018082,2]
[389498057,1759683066146,-842.2,0.00018082,2]
[389498058,1759683066156,-500.0,0.00018082,2]
[389498059,1759683066165,-912.33,0.00018082,2]
[389498060,1759683066174,-500.0,0.00018082,2]
[389498061,1759683066183,-169.45845256,0.00018082,2]
[389498062,1759683066192,-500.0,0.00018082,2]
[389498063,1759683066201,-500.0,0.00018082,2]
[389498064,1759683066213,-500.0,0.00018082,2]
[389498065,1759683066222,-500.0,0.00018082,2]
[389498066,1759683066233,-500.0,0.00018082,2]
[389498067,1759683066242,-500.0,0.00018082,2]
[389498068,1759683066252,-500.0,0.00018082,2]
[389498069,1759683066261,-500.0,0.00018082,2]
[389498070,1759683066270,-500.0,0.00018082,2]
[389498071,1759683066280,-640.99,0.00018082,2]
[389498072,1759683066289,-500.0,0.00018082,2]
[389498073,1759683066298,-751.03,0.00018082,2]
[389498074,1759683066307,-2842.52,0.00018082,2]
[389498075,1759683066316,-500.0,0.00018082,2]
[389498076,1759683066325,-500.0,0.00018082,2]
[389498077,1759683066334,-569.08,0.00018082,2]
[389498078,1759683066343,-500.0,0.00018082,2]
[389498079,1759683066352,-500.0,0.00018082,2]
[389498080,1759683066361,-500.0,0.00018082,2]
[389498081,1759683066370,-184.6634847,0.00018082,2]
[389498082,1759683066379,-501.98388083,0.00018082,2]
[389498083,1759683066388,-905.39,0.00018082,2]
[389498084,1759683066397,-1559.51,0.00018082,2]
[389498085,1759683066406,-863.89,0.00018082,2]
[389498086,1759683066415,-727.65,0.00018082,2]
[389498087,1759683066424,-453.53813995,0.00018082,2]
[389498088,1759683066433,-500.0,0.00018082,2]
[389498089,1759683066442,-500.0,0.00018082,2]
[389498090,1759683066452,-500.0,0.00018082,2]
[389498091,1759683066461,-951.46,0.00018082,2]
[389498092,1759683066470,-500.0,0.00018082,2]
[389498093,1759683066478,-500.0,0.00018082,2]
[389498094,1759683066487,-505.54,0.00018082,2]
[389498095,1759683066496,-158.2238115,0.00018082,2]
[389498096,1759683066505,-500.0,0.00018082,2]
[389498097,1759683066514,-151.0,0.00018082,2]
[389498098,1759683066523,-500.0,0.00018082,2]
[389498099,1759683066533,-151.0,0.00018082,2]
[389498100,1759683066541,-500.0,0.00018082,2]
[389498101,1759683066550,-151.0,0.00018082,2]
[389498102,1759683066559,-500.0,0.00018082,2]
[389498103,1759683066569,-500.0,0.00018082,2]
[389498104,1759683066577,-1271.97,0.00018082,2]
[389498105,1759683066586,-500.0,0.00018082,2]
[389498106,1759683066595,-500.0,0.00018082,2]
[389498107,1759683066604,-500.0,0.00018082,2]
[389498108,1759683066613,-665.62,0.00018082,2]
[389498109,1759683066622,-665.43,0.00018082,2]
[389498110,1759683066630,-627.59,0.00018082,2]
[389498111,1759683066639,-500.0,0.00018082,2]
[389498112,1759683066648,-500.0,0.00018082,2]
[389498113,1759683066657,-3139.2,0.00018082,2]
[389498114,1759683066665,-707.99,0.00018082,2]
[389498115,1759683066674,-500.0,0.00018082,2]
[389498116,1759683066683,-577.86,0.00018082,2]
[389498117,1759683066692,-500.0,0.00018082,2]
[389498118,1759683066702,-1861.48,0.00018082,2]
[389498119,1759683066711,-500.0,0.00018082,2]
[389498120,1759683066720,-706.46,0.00018082,2]
[389498121,1759683066728,-500.0,0.00018082,2]
[389498122,1759683066738,-500.0,0.00018082,2]
[389498123,1759683066747,-1077.99,0.00018082,2]
[389498124,1759683066756,-500.0,0.00018082,2]
[389498125,1759683066765,-500.0,0.00018082,2]
[389498126,1759683066775,-500.0,0.00018082,2]
[389498127,1759683066784,-653.03,0.00018082,2]
[389498128,1759683066794,-769.59,0.00018082,2]
[389498129,1759683066802,-500.0,0.00018082,2]
[389498130,1759683066811,-500.0,0.00018082,2]
[389498131,1759683066820,-1276.47,0.00018082,2]
[389498132,1759683066829,-500.0,0.00018082,2]
[389498133,1759683066838,-690.87,0.00018082,2]
[389498134,1759683066848,-507.23,0.00018082,2]
[389498135,1759683066857,-170.33743293,0.00018082,2]
[389498136,1759683066867,-1894.19,0.00018082,2]
[389498137,1759683066877,-615.45592471,0.00018082,2]
[389498138,1759683066886,-500.0,0.00018082,2]
[389498139,1759683066896,-1293.08,0.00018082,2]
[389498140,1759683066905,-761.4,0.00018082,2]
[389498141,1759683066916,-156.7048081,0.00018082,2]
[389498142,1759683066925,-922.24,0.00018082,2]
[389498143,1759683066935,-500.0,0.00018082,2]
[389498144,1759683066945,-1589.72,0.00018082,2]
[389498145,1759683066955,-500.0,0.00018082,2]
[389498146,1759683066965,-3451.89,0.00018082,2]
[389498147,1759683066974,-1321.69,0.00018082,2]
[389498148,1759683066985,-500.0,0.00018082,2]
[389498149,1759683066994,-587.27,0.00018082,2]
[389498150,1759683067004,-466.65104904,0.00018082,2]
[389498151,1759683067013,-624.18993901,0.00018082,2]
[389498152,1759683067023,-500.0,0.00018082,2]
[389498153,1759683067032,-500.0,0.00018082,2]
[389498154,1759683067041,-500.0,0.00018082,2]
[389498155,1759683067051,-500.0,0.00018082,2]
[389498156,1759683067059,-919.59,0.00018082,2]
[389498157,1759683067069,-586.99,0.00018082,2]
[389498158,1759683067078,-500.0,0.00018082,2]
[389498159,1759683067087,-1240.25,0.00018082,2]
[389498160,1759683067096,-1980.12,0.00018082,2]
[389498161,1759683067105,-500.0,0.00018082,2]
[389498162,1759683067114,-500.0,0.00018082,2]
[389498163,1759683067123,-589.1,0.00018082,2]
[389498164,1759683067132,-500.0,0.00018082,2]
[389498165,1759683067142,-690.9,0.00018082,2]
[389498166,1759683067151,-505.92,0.00018082,2]
[389498167,1759683067160,-500.0,0.00018082,2]
[389498168,1759683067170,-500.0,0.00018082,2]
[389498169,1759683067180,-500.0,0.00018082,2]
[389498170,1759683067193,-500.0,0.00018082,2]
[389498171,1759683067203,-500.0,0.00018082,2]
[389498172,1759683067212,-766.86,0.00018082,2]
[389498173,1759683067222,-500.0,0.00018082,2]
[389498174,1759683067232,-750.6,0.00018082,2]
[389498175,1759683067241,-662.6,0.00018082,2]
[389498176,1759683067250,-500.0,0.00018082,2]
[389498177,1759683067260,-500.0,0.00018082,2]
[389498178,1759683067270,-2886.56,0.00018082,2]
[389498179,1759683067280,-548.46,0.00018082,2]
[389498180,1759683067289,-878.92,0.00018082,2]
[389498181,1759683067298,-1381.99,0.00018082,2]
[389498182,1759683067307,-500.0,0.00018082,2]
[389498183,1759683067316,-500.0,0.00018082,2]
[389498184,1759683067325,-500.0,0.00018082,2]
[389498185,1759683067335,-500.0,0.00018082,2]
[389498186,1759683067344,-500.0,0.00018082,2]
[389498187,1759683067353,-500.0,0.00018082,2]
[389498188,1759683067362,-1231.65,0.00018082,2]
[389498189,1759683067371,-500.0,0.00018082,2]
[389498190,1759683067381,-484.34688251,0.00018082,2]
[389498191,1759683067389,-656.49,0.00018082,2]
[389498192,1759683067399,-500.0,0.00018082,2]
[389498193,1759683067408,-1288.0,0.00018082,2]
[389498194,1759683067417,-675.41,0.00018082,2]
[389498195,1759683067426,-519.32,0.00018082,2]
[389498196,1759683067435,-828.85,0.00018082,2]
[389498197,1759683067444,-843.89,0.00018082,2]
[389498198,1759683067453,-500.0,0.00018082,2]
[389498199,1759683067463,-500.0,0.00018082,2]
[389498200,1759683067472,-500.0,0.00018082,2]
[389498201,1759683067481,-1439.12,0.00018082,2]
[389498202,1759683067491,-500.0,0.00018082,2]
[389498203,1759683067500,-1208.03,0.00018082,2]
[389498204,1759683067508,-500.0,0.00018082,2]
[389498205,1759683067518,-500.0,0.00018082,2]
[389498206,1759683067527,-2847.73,0.00018082,2]
[389498207,1759683067537,-500.0,0.00018082,2]
[389498208,1759683067546,-1201.88,0.00018082,2]
[389498209,1759683067555,-500.0,0.00018082,2]
[389498210,1759683067565,-7543.42,0.00018082,2]
[389498211,1759683067574,-500.0,0.00018082,2]
[389498212,1759683067584,-2501.47,0.00018082,2]
[389498213,1759683067593,-481.08363986,0.00018082,2]
[389498214,1759683067603,-605.92,0.00018082,2]
[389498215,1759683067611,-2829.49,0.00018082,2]
[389498216,1759683067621,-500.0,0.00018082,2]
[389498217,1759683067630,-7633.12,0.00018082,2]
[389498218,1759683067639,-500.0,0.00018082,2]
[389498219,1759683067648,-1955.89,0.00018082,2]
[389498220,1759683067657,-500.0,0.00018082,2]
[389498221,1759683067667,-500.0,0.00018082,2]
[389498222,1759683067676,-500.0,0.00018082,2]
[389498223,1759683067685,-1524.42,0.00018082,2]
[389498224,1759683067694,-1078.1,0.00018082,2]
[389498225,1759683067703,-500.0,0.00018082,2]
[389498226,1759683067713,-2430.6,0.00018082,2]
[389498227,1759683067723,-1566.87,0.00018082,2]
[389498228,1759683067732,-3661.35,0.00018082,2]
[389498229,1759683067741,-5648.74,0.00018082,2]
[389498230,1759683067750,-941.56,0.00018082,2]
[389498231,1759683067760,-500.0,0.00018082,2]
[389498232,1759683067770,-2793.01,0.00018082,2]
[389498233,1759683067779,-500.0,0.00018082,2]
[389498234,1759683067789,-500.0,0.00018082,2]
[389498235,1759683067798,-4190.87,0.00018082,2]
[389498236,1759683067807,-712.14,0.00018082,2]
[389498237,1759683067817,-494.75377499,0.00018082,2]
[389498238,1759683067826,-1244.49,0.00018082,2]
[389498239,1759683067836,-7876.79,0.00018082,2]
[389498240,1759683067846,-500.0,0.00018082,2]
[389498241,1759683067856,-1636.71,0.00018082,2]
[389498242,1759683067866,-500.0,0.00018082,2]
[389498243,1759683067876,-500.0,0.00018082,2]
[389498244,1759683067886,-500.0,0.00018082,2]
[389498245,1759683067899,-1542.81,0.00018082,2]
[389498246,1759683067910,-691.74,0.00018082,2]
[389498247,1759683067922,-746.45,0.00018082,2]
[389498248,1759683067932,-745.75,0.00018082,2]
[389498249,1759683067941,-864.59,0.00018082,2]
[389498250,1759683067951,-500.0,0.00018082,2]
[389498251,1759683067964,-1625.81,0.00018082,2]
[389498252,1759683067974,-1276.87,0.00018082,2]
[389498253,1759683067984,-914.33,0.00018082,2]
[389498254,1759683067993,-1151.73,0.00018082,2]
[389498255,1759683068002,-1768.9,0.00018082,2]
[389498256,1759683068012,-4128.88,0.00018082,2]
[389498257,1759683068022,-1072.496459,0.00018082,2]
[389498258,1759683068031,-1072.496459,0.00018082,2]
[389498259,1759683068041,-500.0,0.00018082,2]
[389498260,1759683068051,-1072.496459,0.00018082,2]
[389498261,1759683068061,-601.81,0.00018082,2]
[389498262,1759683068070,-1072.496459,0.00018082,2]
[389498263,1759683068081,-500.0,0.00018082,2]
[389498264,1759683068091,-1631.89,0.00018082,2]
[389498265,1759683068102,-2717.3,0.00018082,2]
[389498266,1759683068113,-853.97,0.00018082,2]
[389498267,1759683068123,-500.0,0.00018082,2]
[389498268,1759683068133,-5655.4,0.00018082,2]
[389498269,1759683068143,-644.18,0.00018082,2]
[389498270,1759683068153,-851.61,0.00018082,2]
[389498271,1759683068164,-5499.36,0.00018082,2]
[389498272,1759683068174,-4498.11,0.00018082,2]
[389498273,1759683068189,-4396.27,0.00018082,2]
[389498274,1759683068206,-601.93,0.00018082,2]
[389498275,1759683068216,-500.0,0.00018082,2]
[389498276,1759683068226,-500.0,0.00018082,2]
[389498277,1759683068237,-830.43,0.00018082,2]
[389498278,1759683068247,-500.0,0.00018082,2]
[389498279,1759683068256,-500.0,0.00018082,2]
[389498280,1759683068268,-500.0,0.00018082,2]
[389498281,1759683068278,-921.77,0.00018082,2]
[389498282,1759683068287,-1181.0,0.00018082,2]
[389498283,1759683068297,-2597.62,0.00018082,2]
[389498284,1759683068306,-1226.01,0.00018082,2]
[389498285,1759683068316,-1056.87,0.00018082,2]
[389498286,1759683068326,-500.0,0.00018082,2]
[389498287,1759683068335,-500.0,0.00018082,2]
[389498288,1759683068345,-1595.17,0.00018082,2]
[389498289,1759683068354,-3567.7,0.00018082,2]
[389498290,1759683068364,-4467.37,0.00018082,2]
[389498291,1759683068374,-275.05855635,0.00018082,2]
[389498292,1759683068384,-500.0,0.00018082,2]
[389498293,1759683068394,-2425.68,0.00018082,2]
[389498294,1759683068404,-1398.29,0.00018082,2]
[389498295,1759683068413,-509.51,0.00018082,2]
[389498296,1759683068423,-4931.82,0.00018082,2]
[389498297,1759683068432,-500.0,0.00018082,2]
[389498298,1759683068444,-500.0,0.00018082,2]
[389498299,1759683068455,-2146.05,0.00018082,2]
[389498300,1759683068465,-2006.77,0.00018082,2]
[389498301,1759683068476,-500.0,0.00018082,2]
[389498302,1759683068486,-500.0,0.00018082,2]
[389498303,1759683068496,-1916.69,0.00018082,2]
[389498304,1759683068506,-500.0,0.00018082,2]
[389498305,1759683068517,-9096.5,0.00018082,2]
[389498306,1759683068527,-3164.66,0.00018082,2]
[389498307,1759683068537,-1132.36,0.00018082,2]
[389498308,1759683068547,-593.97,0.00018082,2]
[389498309,1759683068557,-500.0,0.00018082,2]
[389498310,1759683068567,-500.0,0.00018082,2]
[389498311,1759683068577,-500.0,0.00018082,2]
[389498312,1759683068587,-1024.56,0.00018082,2]
[389498313,1759683068598,-703.22,0.00018082,2]
[389498314,1759683068608,-500.0,0.00018082,2]
[389498315,1759683068618,-500.0,0.00018082,2]
[389498316,1759683068627,-1118.02,0.00018082,2]
[389498317,1759683068638,-500.0,0.00018082,2]
[389498318,1759683068648,-500.0,0.00018082,2]
[389498319,1759683068658,-1995.61,0.00018082,2]
[389498320,1759683068667,-2310.91,0.00018082,2]
[389498321,1759683068678,-295.42865613,0.00018082,2]
[389498322,1759683068687,-583.51,0.00018082,2]
[389498323,1759683068698,-741.26,0.00018082,2]
[389498324,1759683068709,-4044.23,0.00018082,2]
[389498325,1759683068719,-500.0,0.00018082,2]
[389498326,1759683068728,-151.0,0.00018115,2]
[389498327,1759683068741,-153.57373255,0.00018115,2]
[389498328,1759683068751,-500.0,0.00018115,2]
[389498329,1759683068761,-500.0,0.00018115,2]
[389498330,1759683068771,-1752.0,0.00018115,2]
[389498331,1759683068783,-500.0,0.00018115,2]
[389498332,1759683068793,-500.0,0.00018115,2]
[389498333,1759683068803,-500.0,0.00018115,2]
[389498334,1759683068813,-282.42674795,0.00018115,2]
[389498335,1759683068823,-500.0,0.00018115,2]
[389498336,1759683068833,-500.0,0.00018115,2]
[389498337,1759683068843,-348.57468858,0.00018115,2]
[389498338,1759683068853,-700.0,0.00018136,2]
[389498339,1759683068863,-12826.477365,0.00018215,2]
[389498340,1759683068874,-1000.0,0.00018225,2]
[389498341,1759683068885,-1000.0,0.00018225,2]
[389498342,1759683068895,-1000.0,0.00018225,2]
[389498343,1759683068905,-505.25522251,0.00018225,2]
[389498344,1759683068915,-1000.0,0.00018225,2]
[389498345,1759683068925,-1000.0,0.00018227,2]
[389498346,1759683068935,-1000.0,0.00018227,2]
[389498347,1759683068946,-1000.0,0.00018227,2]
[389498348,1759683068957,-1000.0,0.00018227,2]
[389498349,1759683068968,-1000.0,0.00018227,2]
[389498350,1759683069169,-201.0,0.0001823,2]
[389498351,1759683069186,-20746.26328358,0.00018246,2]
[389498352,1759683069197,-192.27985157,0.00018246,2]
[389498353,1759683069209,-157.3897437,0.00018247,2]
[389498354,1759683069219,-201.0,0.00018247,2]
[389498355,1759683069229,-201.0,0.00018261,2]
[389498356,1759683069239,-475.83304486,0.00018262,2]
[389498357,1759683069248,-998.209,0.00018289,2]
[389498358,1759683069257,-410.0,0.00018289,2]
[389498359,1759683069269,-433.472,0.00018289,2]
[389498360,1759683069278,-630.0,0.00018289,2]
[389498361,1759683069288,-2158.0,0.00018289,2]
[389498362,1759683069297,-1000.0,0.0001829,2]
[389498363,1759683069306,-1000.0,0.0001829,2]
[389498364,1759683069316,-500.0,0.00018356,2]
[389498365,1759683069325,-500.0,0.00018356,2]
[389498366,1759683069334,-1462.89,0.00018356,2]
[389498367,1759683069344,-500.0,0.00018356,2]
[389498368,1759683069353,-500.0,0.00018356,2]
[389498369,1759683069364,-500.0,0.00018356,2]
[389498370,1759683069374,-500.0,0.00018356,2]
[389498371,1759683069383,-607.69,0.00018356,2]
[389498372,1759683069393,-855.9,0.00018356,2]
[389498373,1759683069402,-500.0,0.00018356,2]
[389498374,1759683069411,-769.36,0.00018356,2]
[389498375,1759683069420,-500.0,0.00018356,2]
[389498376,1759683069430,-500.0,0.00018356,2]
[389498377,1759683069439,-500.0,0.00018356,2]
[389498378,1759683069449,-994.94,0.00018356,2]
[389498379,1759683069460,-500.0,0.00018356,2]
[389498380,1759683069469,-500.0,0.00018356,2]
[389498381,1759683069479,-500.0,0.00018356,2]
[389498382,1759683069488,-1206.92,0.00018356,2]
[389498383,1759683069498,-500.0,0.00018356,2]
[389498384,1759683069507,-500.0,0.00018356,2]
[389498385,1759683069516,-500.0,0.00018356,2]
[389498386,1759683069526,-500.0,0.00018356,2]
[389498387,1759683069535,-762.91,0.00018356,2]
[389498388,1759683069544,-992.97,0.00018356,2]
[389498389,1759683069553,-842.2,0.00018356,2]
[389498390,1759683069562,-500.0,0.00018356,2]
[389498391,1759683069572,-912.33,0.00018356,2]
[389498392,1759683069581,-500.0,0.00018356,2]
[389498393,1759683069590,-500.0,0.00018356,2]
[389498394,1759683069599,-500.0,0.00018356,2]
[389498395,1759683069608,-500.0,0.00018356,2]
[389498396,1759683069618,-308.26584894,0.00018356,2]
[389498397,1759683069627,-500.0,0.00018356,2]
[389498398,1759683069636,-500.0,0.00018356,2]
[389498399,1759683069646,-500.0,0.00018356,2]
[389498400,1759683069655,-500.0,0.00018356,2]
[389498401,1759683069666,-500.0,0.00018356,2]
[389498402,1759683069676,-640.99,0.00018356,2]
[389498403,1759683069685,-500.0,0.00018356,2]
[389498404,1759683069694,-751.03,0.00018356,2]
[389498405,1759683069704,-2842.52,0.00018356,2]
[389498406,1759683069713,-500.0,0.00018356,2]
[389498407,1759683069722,-500.0,0.00018356,2]
[389498408,1759683069732,-569.08,0.00018356,2]
[389498409,1759683069741,-500.0,0.00018356,2]
[389498410,1759683069750,-500.0,0.00018356,2]
[389498411,1759683069760,-465.48,0.00018356,2]
[389498412,1759683069770,-905.39,0.00018356,2]
[389498413,1759683069779,-1559.51,0.00018356,2]
[389498414,1759683069789,-863.89,0.00018356,2]
[389498415,1759683069801,-727.65,0.00018356,2]
[389498416,1759683069810,-500.0,0.00018356,2]
[389498417,1759683069820,-500.0,0.00018356,2]
[389498418,1759683069829,-500.0,0.00018356,2]
[389498419,1759683069840,-951.46,0.00018356,2]
[389498420,1759683069850,-500.0,0.00018356,2]
[389498421,1759683069859,-500.0,0.00018356,2]
[389498422,1759683069867,-500.0,0.00018356,2]
[389498423,1759683069877,-500.0,0.00018356,2]
[389498424,1759683069886,-500.0,0.00018356,2]
[389498425,1759683069895,-500.0,0.00018356,2]
[389498426,1759683069904,-500.0,0.00018356,2]
[389498427,1759683069914,-1271.97,0.00018356,2]
[389498428,1759683069923,-500.0,0.00018356,2]
[389498429,1759683069932,-500.0,0.00018356,2]
[389498430,1759683069941,-500.0,0.00018356,2]
[389498431,1759683069950,-665.62,0.00018356,2]
[389498432,1759683069961,-665.43,0.00018356,2]
[389498433,1759683069971,-627.59,0.00018356,2]
[389498434,1759683069981,-500.0,0.00018356,2]
[389498435,1759683069990,-500.0,0.00018356,2]
[389498436,1759683070009,-3139.2,0.00018356,2]
[389498437,1759683070018,-707.99,0.00018356,2]
[389498438,1759683070028,-500.0,0.00018356,2]
[389498439,1759683070037,-577.86,0.00018356,2]
[389498440,1759683070046,-500.0,0.00018356,2]
[389498441,1759683070055,-1861.48,0.00018356,2]
[389498442,1759683070065,-500.0,0.00018356,2]
[389498443,1759683070074,-706.46,0.00018356,2]
[389498444,1759683070083,-500.0,0.00018356,2]
[389498445,1759683070092,-324.88460938,0.00018356,2]
[389498446,1759683070102,-1077.99,0.00018356,2]
[389498447,1759683070111,-480.0,0.00018356,2]
[389498448,1759683070120,-500.0,0.00018356,2]
[389498449,1759683070130,-500.0,0.00018356,2]
[389498450,1759683070140,-653.03,0.00018356,2]
[389498451,1759683070149,-769.59,0.00018356,2]
[389498452,1759683070159,-500.0,0.00018356,2]
[389498453,1759683070168,-500.0,0.00018356,2]
[389498454,1759683070177,-1276.47,0.00018356,2]
[389498455,1759683070190,-500.0,0.00018356,2]
[389498456,1759683070207,-690.87,0.00018356,2]
[389498457,1759683070216,-507.23,0.00018356,2]
[389498458,1759683070226,-1894.19,0.00018356,2]
[389498459,1759683070236,-500.0,0.00018356,2]
[389498460,1759683070245,-1293.08,0.00018356,2]
[389498461,1759683070255,-761.4,0.00018356,2]
[389498462,1759683070265,-922.24,0.00018356,2]
[389498463,1759683070278,-500.0,0.00018356,2]
[389498464,1759683070290,-1589.72,0.00018356,2]
[389498465,1759683070300,-500.0,0.00018356,2]
[389498466,1759683070309,-3451.89,0.00018356,2]
[389498467,1759683070318,-1321.69,0.00018356,2]
[389498468,1759683070327,-500.0,0.00018356,2]
[389498469,1759683070336,-587.27,0.00018356,2]
[389498470,1759683070346,-202.003537,0.00018356,2]
[389498471,1759683070355,-500.0,0.00018356,2]
[389498472,1759683070364,-500.0,0.00018356,2]
[389498473,1759683070373,-500.0,0.00018356,2]
[389498474,1759683070382,-919.59,0.00018356,2]
[389498475,1759683070392,-586.99,0.00018356,2]
[389498476,1759683070401,-500.0,0.00018356,2]
[389498477,1759683070410,-1240.25,0.00018356,2]
[389498478,1759683070419,-1980.12,0.00018356,2]
[389498479,1759683070427,-500.0,0.00018356,2]
[389498480,1759683070436,-500.0,0.00018356,2]
[389498481,1759683070446,-589.1,0.00018356,2]